bitfinex/quotes_BTCUSD_20251214
["timestamp","ask_amount","ask_price","bid_price","bid_amount"]
[1765755470667,0.11230999,87912.0,87911.0,0.23887557]
[1765755470983,0.11230999,87912.0,87911.0,0.01137514]
[1765755471177,0.11230999,87912.0,87907.0,0.01137565]
[1765755471178,0.11230999,87908.0,87907.0,0.23888812]
[1765755473718,0.13054999,87914.0,87913.0,0.22749763]
[1765755473923,0.03416325,87922.0,87921.0,0.22747693]
[1765755474085,0.11230999,87917.0,87916.0,0.01137449]
[1765755474292,0.11230999,87915.0,87914.0,0.01137475]
[1765755474490,0.00161287,87922.0,87921.0,0.22747693]
[1765755474712,0.13216286,87922.0,87921.0,0.22747693]
[1765755474930,0.01985287,87922.0,87919.0,0.23885541]
[1765755475130,0.11230999,87920.0,87919.0,0.23885541]
[1765755476075,0.0315,87935.0,87919.0,0.23885541]
[1765755476076,0.11230999,87923.0,87922.0,0.22747435]
[1765755476287,0.13054999,87923.0,87922.0,0.22747435]
[1765755476516,0.13054999,87923.0,87922.0,0.37104937]
[1765755476740,0.01824,87923.0,87922.0,0.43892937]
[1765755477149,0.11230999,87926.0,87925.0,0.22746659]
[1765755477362,0.01824,87926.0,87925.0,0.22746659]
[1765755477992,0.11230999,87925.0,87924.0,0.22746917]
[1765755478185,0.11230999,87925.0,87924.0,0.30856432]
[1765755479122,0.11230999,87925.0,87924.0,0.22746917]
[1765755479558,0.11230999,87917.0,87914.0,0.23886787]
[1765755479803,0.03309287,87917.0,87910.0,0.01137527]
[1765755480006,0.11230999,87909.0,87908.0,0.01137552]
[1765755480206,0.01824,87916.0,87913.0,0.01137488]
[1765755480549,0.11230999,87923.0,87913.0,0.01137488]
[1765755480550,0.11230999,87923.0,87920.0,0.01137397]
[1765755480742,0.01824,87922.0,87919.0,0.0113741]
[1765755480990,0.01824,87922.0,87914.0,0.01137475]
[1765755480991,0.11230999,87916.0,87911.0,0.01137514]
[1765755481196,0.01824,87922.0,87911.0,0.01137514]
[1765755481197,0.11230999,87912.0,87911.0,0.01137514]
[1765755481462,0.11230999,87912.0,87908.0,0.01137552]
[1765755481463,0.11230999,87905.0,87904.0,0.01137604]
[1765755481661,0.04972,87912.0,87909.0,0.01137539]
[1765755481662,0.11230999,87910.0,87909.0,0.01137539]
[1765755481996,0.13054999,87910.0,87909.0,0.08418081]
[1765755483262,0.11230999,87910.0,87909.0,0.08418081]
[1765755483471,0.02435724,87927.0,87920.0,0.23885242]
[1765755483671,0.02435724,87927.0,87909.0,0.18616542]
[1765755483672,0.11230999,87918.0,87915.0,0.238867]
[1765755483880,0.03148,87910.0,87909.0,0.07280542]
[1765755484086,0.13054999,87910.0,87909.0,0.07280542]
[1765755484295,0.01824,87910.0,87907.0,0.01137565]
[1765755484497,0.11230999,87908.0,87907.0,0.01137565]
[1765755484701,0.11230999,87907.0,87906.0,0.01137578]
[1765755485563,0.11230999,87908.0,87907.0,0.23888881]
[1765755485768,0.13054999,87908.0,87907.0,0.23888881]
[1765755486052,0.13054999,87908.0,87907.0,0.31169334]
[1765755486254,0.13054999,87908.0,87907.0,0.08418018]
[1765755488009,0.01824,87908.0,87907.0,0.08418018]
[1765755489040,0.11230999,87919.0,87918.0,0.01137423]
[1765755489240,0.13054999,87919.0,87918.0,0.03753681]
[1765755490014,0.11230999,87919.0,87918.0,0.03753681]
[1765755490209,0.13054999,87919.0,87918.0,0.03753681]
[1765755490730,0.11230999,87922.0,87919.0,0.23885621]
[1765755490888,0.11230999,87922.0,87921.0,0.22747693]
[1765755491089,0.13054999,87922.0,87921.0,0.22747693]
[1765755491293,0.11230999,87922.0,87921.0,0.22747693]
[1765755491503,0.11230999,87922.0,87921.0,0.27295693]
[1765755491699,0.11230999,87938.0,87935.0,0.01137203]
[1765755491932,0.13054999,87937.0,87936.0,0.02615707]
[1765755492104,0.11230999,87937.0,87936.0,0.02615707]
[1765755492675,0.11230999,87941.0,87940.0,0.01137138]
[1765755492916,0.01835569,87941.0,87938.0,0.01137164]
[1765755493118,0.11230999,87939.0,87938.0,0.01137164]
[1765755493293,0.11230999,87939.0,87938.0,0.086769]
[1765755493703,0.11230999,87939.0,87938.0,0.07539736]
[1765755493906,0.11230999,87939.0,87936.0,0.03752897]
[1765755494100,0.11230999,87933.0,87931.0,0.01137255]
[1765755494310,0.11230999,87931.0,87930.0,0.01137268]
[1765755494512,0.11230999,87929.0,87928.0,0.2388314]
[1765755494879,0.00011569,87941.0,87940.0,0.22742779]
[1765755495153,0.00011569,87941.0,87940.0,0.27290779]
[1765755495353,0.00011569,87941.0,87940.0,0.41583969]
[1765755503655,0.05,87982.0,87972.0,0.23871231]
[1765755503855,0.01824,87973.0,87972.0,0.23871231]
[1765755504287,0.00051567,87975.0,87972.0,0.28419231]
[1765755504487,0.00051567,87975.0,87974.0,0.04548]
[1765755504657,0.00051567,87975.0,87974.0,0.16337839]
[1765755504869,0.00051567,87975.0,87974.0,0.27720295]
[1765755505190,0.05,87982.0,87974.0,0.27720295]
[1765755505191,0.05,87982.0,87981.0,0.68035018]
[1765755505394,0.05038548,87982.0,87981.0,0.72583018]
[1765755505665,0.05038548,87982.0,87981.0,0.9042178]
[1765755506101,0.05038548,87982.0,87981.0,0.79190781]
[1765755506941,0.05038548,87982.0,87981.0,0.74188942]
[1765755507896,0.05038548,87982.0,87981.0,0.33782942]
[1765755508409,0.05038548,87982.0,87981.0,0.38684942]
[1765755508609,0.05038548,87982.0,87981.0,0.45624942]
[1765755509234,0.0004,87988.0,87981.0,0.45624942]
[1765755509235,0.0004,87988.0,87987.0,0.2273063]
[1765755509394,0.0004,87988.0,87987.0,0.35423735]
[1765755509751,0.0004,87988.0,87987.0,0.42363735]
[1765755511489,0.0004,87988.0,87987.0,0.30521735]
[1765755512026,0.0004,87988.0,87987.0,0.42363735]
[1765755512662,0.0004,87988.0,87987.0,0.30521735]
[1765755513000,0.0004,87988.0,87987.0,0.07791105]
[1765755513200,0.11230999,87986.0,87985.0,0.01136557]
[1765755513595,0.0004,87988.0,87986.0,0.22730889]
[1765755513798,0.01824,87987.0,87986.0,0.22730889]
[1765755513994,0.01824,87987.0,87986.0,0.29670889]
[1765755514199,0.01824,87987.0,87986.0,0.42654637]
[1765755514829,0.0004,87988.0,87986.0,0.42654637]
[1765755514830,0.0004,87988.0,87987.0,0.05001839]
[1765755515187,0.0004,87988.0,87987.0,0.28074838]
[1765755515409,0.0004,87988.0,87987.0,0.57144838]
[1765755515605,0.0004,87988.0,87987.0,0.681956]
[1765755516222,0.0004,87988.0,87987.0,0.56964601]
[1765755517156,0.0004,87988.0,87987.0,0.79578056]
[1765755517347,0.00871916,88003.0,88002.0,0.22726756]
[1765755517562,0.00883474,88003.0,88002.0,0.37880595]
[1765755517736,0.00883474,88003.0,88002.0,0.94805649]
[1765755518172,0.00883474,88003.0,88002.0,0.8357465]
[1765755519008,0.00883474,88003.0,88002.0,0.76748811]
[1765755519774,0.00883474,88003.0,88002.0,0.47678811]
[1765755519981,0.12114473,88003.0,88002.0,0.32410811]
[1765755520815,0.00883474,88003.0,88002.0,0.44252811]
[1765755521007,0.00883474,88003.0,88002.0,0.4925465]
[1765755521745,0.0004,88014.0,88013.0,0.22723915]
[1765755521888,0.0004,88014.0,88013.0,0.38553394]
[1765755522085,0.0004,88014.0,88013.0,0.45493394]
[1765755522292,0.0004,88014.0,88013.0,0.40491555]
[1765755523514,0.0004,88014.0,88013.0,0.45493394]
[1765755525572,0.0004,88014.0,88013.0,0.25223555]
[1765755525790,0.11270999,88014.0,88013.0,0.25223555]
[1765755525995,0.0004,88014.0,88013.0,0.25223555]
[1765755526219,0.0004,88014.0,88013.0,0.37065555]
[1765755526657,0.0004,88014.0,88013.0,0.30125555]
[1765755526865,0.0004,88014.0,88013.0,0.37065555]
[1765755527487,0.0004,88014.0,88013.0,0.25223555]
[1765755527895,0.16233999,88014.0,88013.0,0.0249964]
[1765755528303,0.23166286,88014.0,88013.0,0.0249964]
[1765755528532,0.11230999,88010.0,88009.0,0.23860989]
[1765755528888,0.16193999,88010.0,88009.0,0.23860989]
[1765755529318,0.11895287,88010.0,88005.0,0.01136299]
[1765755529564,0.19429999,88005.0,88004.0,0.01136311]
[1765755529759,0.11230999,88003.0,88002.0,0.01136337]
[1765755529986,0.16355286,88003.0,88002.0,0.01136337]
[1765755530164,0.00161287,88003.0,88002.0,0.23863093]
[1765755530367,0.0182,88003.0,88002.0,0.30908612]
[1765755530783,0.11270999,88014.0,88013.0,0.22723915]
[1765755530978,0.13090999,88014.0,88013.0,0.22723915]
[1765755531188,0.13252286,88014.0,88013.0,0.22723915]
[1765755531391,0.11230999,88012.0,88011.0,0.01136221]
[1765755531591,0.16193999,88012.0,88011.0,0.06022087]
[1765755532199,0.16193999,88012.0,88011.0,0.01136221]
[1765755532420,0.11230999,88012.0,88011.0,0.01136221]
[1765755532631,0.0004,88014.0,88012.0,0.22724173]
[1765755532840,0.0004,88014.0,88013.0,0.04902]
[1765755533051,0.0004,88014.0,88013.0,0.11842]
[1765755533254,0.0004,88014.0,88013.0,0.20413437]
[1765755533448,0.0004,88014.0,88013.0,0.13473437]
[1765755533860,0.11270999,88014.0,88013.0,0.08571437]
[1765755534272,0.0004,88014.0,88013.0,0.08571437]
[1765755534466,0.11270999,88014.0,88013.0,0.08571437]
[1765755534675,0.0004,88014.0,88013.0,0.08571437]
[1765755535115,0.11270999,88014.0,88013.0,0.08571437]
[1765755536936,0.05085287,88014.0,88013.0,0.08571437]
[1765755537142,0.16316286,88014.0,88013.0,0.08571437]
[1765755538054,0.12229287,88014.0,88002.0,0.30908503]
[1765755538244,0.11230999,88005.0,88004.0,0.2386255]
[1765755538454,0.13050999,88005.0,88004.0,0.23874108]
[1765755538781,0.13050999,88005.0,88004.0,0.00011558]
[1765755538782,0.54310286,88005.0,88004.0,0.00011558]
[1765755539153,0.5772342,88005.0,88004.0,0.00011558]
[1765755539359,1.60756806,88005.0,88004.0,0.00011558]
[1765755539557,1.60756806,88005.0,87974.0,0.22733751]
[1765755539558,0.11230999,87976.0,87975.0,0.01136686]
[1765755539791,0.13050999,87976.0,87975.0,0.01136686]
[1765755540975,0.06704,87976.0,87972.0,0.01136725]
[1765755541154,0.11230999,87973.0,87972.0,0.01136725]
[1765755541366,0.11230999,87970.0,87969.0,0.01136764]
[1765755541565,0.11230999,87970.0,87962.0,0.01136854]
[1765755541566,0.04884,87970.0,87962.0,0.01136854]
[1765755541768,0.16114999,87963.0,87962.0,0.00038548]
[1765755541971,0.0182,87963.0,87962.0,0.00038548]
[1765755542367,0.13050999,87963.0,87962.0,0.00038548]
[1765755543324,0.40300999,87975.0,87974.0,0.01136699]
[1765755543442,0.40300999,87973.0,87972.0,0.01136725]
[1765755543866,0.0182,87975.0,87973.0,0.22734248]
[1765755544066,0.11230999,87974.0,87973.0,0.22734248]
[1765755544276,0.13050999,87974.0,87973.0,0.32864444]
[1765755544477,0.0182,87974.0,87973.0,0.32864444]
[1765755544683,0.13050999,87974.0,87973.0,0.32864444]
[1765755544916,0.025,87982.0,87980.0,0.22732368]
[1765755544917,0.40300999,87981.0,87980.0,0.22732368]
[1765755545344,0.42120999,87981.0,87980.0,0.22732368]
[1765755545602,0.13050999,87981.0,87980.0,0.0853539]
[1765755546089,0.0182,87981.0,87980.0,0.0853539]
[1765755546302,0.13050999,87981.0,87980.0,0.0853539]
[1765755547080,0.025,87987.0,87984.0,0.0113657]
[1765755547294,0.0182,87986.0,87984.0,0.0113657]
[1765755547495,0.0182,87986.0,87985.0,0.03467784]
[1765755547696,0.23865076,87995.0,87985.0,0.03467784]
[1765755547697,0.025,87991.0,87985.0,0.03467784]
[1765755547874,0.42120999,87986.0,87985.0,0.03467784]
[1765755548074,0.025,87991.0,87985.0,0.03467784]
[1765755548279,0.11230999,87999.0,87997.0,0.01136402]
[1765755548506,0.03236,88006.0,87995.0,0.01136428]
[1765755548507,0.13050999,87998.0,87995.0,0.01136428]
[1765755548681,0.40300999,87996.0,87995.0,0.01136428]
[1765755549674,0.2907,87996.0,87995.0,0.01136428]
[1765755549882,0.2907,87996.0,87995.0,0.10569166]
[1765755550816,0.01136234,88010.0,87995.0,0.10569166]
[1765755550817,0.11230999,88008.0,88005.0,0.2386228]
[1765755551102,0.0182,88007.0,88005.0,0.2836928]
[1765755551258,0.0182,88007.0,88006.0,0.06951]
[1765755551452,0.13050999,88007.0,88006.0,0.06951]
[1765755551756,0.13050999,88007.0,88006.0,0.1012639]
[1765755552229,0.0182,88007.0,88006.0,0.1012639]
[1765755552423,0.13050999,88007.0,88006.0,0.1012639]
[1765755553421,0.11230999,87996.0,87993.0,0.01136454]
[1765755553630,0.11230999,87996.0,87995.0,0.23864863]
[1765755553841,0.13050999,87996.0,87995.0,0.23864863]
[1765755554050,0.40300999,88005.0,88004.0,0.22726239]
[1765755554254,0.42120999,88005.0,88004.0,0.27498792]
[1765755554459,0.13050999,88005.0,88004.0,0.27498792]
[1765755554659,0.00011553,88008.0,88007.0,0.22725465]
[1765755554864,0.00011553,88008.0,88007.0,0.27232465]
[1765755555070,0.00011553,88008.0,88007.0,0.45234227]
[1765755556305,0.00011553,88008.0,88007.0,0.38283227]
[1765755556438,0.00011553,88008.0,88007.0,0.45234227]
[1765755565042,0.00011553,88008.0,88007.0,0.50236066]
[1765755567307,0.00011553,88008.0,88007.0,0.61467065]
[1765755569833,0.00011553,88008.0,88007.0,1.05377065]
[1765755572293,0.00011553,88008.0,88007.0,0.94146066]
[1765755572971,0.00011553,88008.0,88007.0,1.05377065]
[1765755573643,0.11230999,88073.0,88072.0,0.01123149]
[1765755573901,0.2907,88068.0,88065.0,0.01135524]
[1765755574123,0.29231287,88068.0,88065.0,0.23845979]
[1765755574342,0.2907,88068.0,88066.0,0.04882856]
[1765755574563,0.0113555,88063.0,88051.0,0.01135705]
[1765755574791,0.0113555,88063.0,88043.0,0.01135808]
[1765755574792,0.11230999,88044.0,88043.0,0.01135808]
[1765755575003,0.11230999,88043.0,88042.0,0.01135821]
[1765755575422,0.00161287,88044.0,88043.0,0.34805172]
[1765755575636,0.2907,88049.0,88048.0,0.22714882]
[1765755575860,0.2907,88049.0,88044.0,0.22715683]
[1765755575861,0.2907,88068.0,88065.0,0.01135524]
[1765755576063,0.00161287,88063.0,88062.0,0.22711271]
[1765755576260,0.11230999,88062.0,88061.0,0.22711529]
[1765755576491,0.11230999,88061.0,88060.0,0.01135589]
[1765755577870,0.00161287,88063.0,88061.0,0.22711529]
[1765755578073,0.00161287,88063.0,88062.0,0.12089]
[1765755578937,0.11392286,88063.0,88062.0,0.12089]
[1765755579137,0.11230999,88063.0,88062.0,0.12089]
[1765755580805,0.00011562,88068.0,88067.0,0.22709982]
[1765755581003,0.00011562,88068.0,88067.0,0.31232982]
[1765755581395,0.11242561,88068.0,88067.0,0.31232982]
[1765755581818,0.00011562,88068.0,88067.0,0.31232982]
[1765755582158,0.00011562,88068.0,88067.0,0.38416982]
[1765755583610,0.00011562,88068.0,88067.0,0.49412676]
[1765755585722,0.00011562,88068.0,88067.0,0.54414515]
[1765755586331,0.00011562,88068.0,88067.0,0.49412676]
[1765755586552,0.00011562,88068.0,88067.0,0.54414515]
[1765755587060,0.00011562,88068.0,88067.0,0.65645514]
[1765755587912,0.0004,88090.0,88089.0,0.2270431]
[1765755588140,0.0007851,88090.0,88089.0,0.3841131]
[1765755589322,0.0007851,88090.0,88089.0,0.3122731]
[1765755589522,0.0007851,88090.0,88089.0,0.3841131]
[1765755590544,0.0004,88105.0,88100.0,0.22701475]
[1765755590698,0.0004,88113.0,88110.0,0.51768899]
[1765755590875,0.00051548,88111.0,88110.0,0.63857899]
[1765755591241,0.00051548,88111.0,88110.0,0.80090737]
[1765755591439,0.00051548,88111.0,88110.0,0.34787899]
[1765755592789,0.00051548,88111.0,88110.0,0.27603899]
[1765755593002,0.00051548,88111.0,88110.0,0.30588057]
[1765755593661,0.00051548,88111.0,88110.0,0.07889158]
[1765755593863,0.01134983,88107.0,88103.0,0.01135035]
[1765755594065,0.11230999,88105.0,88104.0,0.01135022]
[1765755594283,0.11392286,88105.0,88104.0,0.01135022]
[1765755594449,0.16365286,88105.0,88104.0,0.01135022]
[1765755594644,0.11392286,88105.0,88104.0,0.01135022]
[1765755594853,0.16365286,88105.0,88104.0,0.05520031]
[1765755595262,0.11392286,88105.0,88104.0,0.05520031]
[1765755595418,0.11392286,88105.0,88088.0,0.01135228]
[1765755595419,0.01135125,88096.0,88088.0,0.01135228]
[1765755595621,0.01135151,88094.0,88085.0,0.01135267]
[1765755595829,0.11230999,88087.0,88086.0,0.01135254]
[1765755596041,0.00161287,88094.0,88088.0,0.01135228]
[1765755596244,0.00161287,88094.0,88093.0,0.04905]
[1765755596712,0.00161287,88094.0,88089.0,0.01135215]
[1765755596713,0.06966942,88094.0,88089.0,0.01135215]
[1765755596915,0.06966942,88094.0,88088.0,0.01135228]
[1765755596916,0.11230999,88089.0,88088.0,0.01135228]
[1765755597114,0.00161287,88089.0,88088.0,0.01135228]
[1765755597352,0.00161287,88089.0,88088.0,0.06728445]
[1765755598475,0.11392286,88089.0,88088.0,0.06728445]
[1765755598836,0.00161287,88089.0,88088.0,0.06728445]
[1765755599833,0.40300999,88100.0,88099.0,0.22701733]
[1765755600039,0.01134893,88114.0,88108.0,0.0113497]
[1765755600040,0.11230999,88109.0,88108.0,0.0113497]
[1765755600254,0.42116999,88109.0,88108.0,0.0113497]
[1765755600676,0.42278286,88109.0,88108.0,0.0113497]
[1765755600883,0.29231287,88109.0,88108.0,0.0113497]
[1765755601099,0.01867548,88111.0,88109.0,0.22699156]
[1765755601307,0.19088999,88109.0,88108.0,0.07150506]
[1765755601541,0.19250286,88109.0,88108.0,0.07150506]
[1765755602155,0.01135125,88096.0,88086.0,0.01135254]
[1765755602375,0.11230999,88083.0,88081.0,0.01135318]
[1765755602597,0.11230999,88083.0,88082.0,0.04618305]
[1765755603182,0.11230999,88102.0,88100.0,0.01135073]
[1765755603389,0.11230999,88095.0,88094.0,0.23838045]
[1765755603585,0.11242545,88095.0,88094.0,0.23838045]
[1765755603849,0.11403832,88095.0,88094.0,0.23838045]
[1765755604056,0.11403832,88095.0,88094.0,0.01135151]
[1765755604303,0.11230999,88093.0,88092.0,0.23838683]
[1765755604456,0.11230999,88093.0,88092.0,0.28720095]
[1765755604659,0.11230999,88093.0,88092.0,0.40458095]
[1765755604863,0.11230999,88093.0,88092.0,0.33360095]
[1765755605070,0.11230999,88093.0,88092.0,0.04881412]
[1765755605439,0.52692286,88093.0,88092.0,0.04881412]
[1765755605683,0.00161287,88093.0,88092.0,0.22703537]
[1765755605888,0.01977287,88093.0,88092.0,0.27343537]
[1765755606089,0.13208286,88093.0,88090.0,0.23839087]
[1765755606291,0.04023189,88091.0,88084.0,0.01135279]
[1765755606506,0.11230999,88087.0,88086.0,0.23840325]
[1765755606708,0.11392286,88091.0,88090.0,0.22704052]
[1765755608570,0.11230999,88087.0,88086.0,0.01135254]
[1765755609012,0.00161287,88091.0,88090.0,0.22704052]
[1765755609342,0.11392286,88091.0,88090.0,0.29969586]
[1765755610786,0.15941286,88091.0,88090.0,0.29969586]
[1765755610993,0.11392286,88091.0,88090.0,0.29969586]
[1765755613264,0.00011546,88095.0,88094.0,0.22703021]
[1765755613491,0.01827546,88095.0,88094.0,0.41177542]
[1765755614738,0.01827546,88095.0,88094.0,0.34146542]
[1765755616462,0.00011546,88095.0,88094.0,0.41177542]
[1765755617250,0.00011546,88095.0,88094.0,0.81478541]
[1765755617444,0.0004,88113.0,88110.0,0.22698899]
[1765755617668,0.0004,88113.0,88110.0,0.3213184]
[1765755617998,0.11270999,88111.0,88110.0,0.2746584]
[1765755618413,0.0004,88111.0,88110.0,0.2746584]
[1765755621216,0.11270999,88111.0,88110.0,0.2746584]
[1765755622271,0.0004,88111.0,88110.0,0.3213184]
[1765755622463,0.11270999,88111.0,88110.0,0.3916284]
[1765755622952,0.0004,88111.0,88110.0,0.3916284]
[1765755625895,0.11270999,88111.0,88110.0,0.3916284]
[1765755626991,0.0004,88111.0,88110.0,0.3916284]
[1765755627618,0.0004,88111.0,88110.0,0.50393839]
[1765755627825,0.0004,88111.0,88110.0,0.3916284]
[1765755629722,0.42116999,88147.0,88146.0,0.01134481]
[1765755630092,0.42128545,88147.0,88146.0,0.01134481]
[1765755630299,0.42289832,88147.0,88146.0,0.01134481]
[1765755630740,0.47116832,88147.0,88146.0,0.01134481]
[1765755630915,0.11230999,88142.0,88141.0,0.23825256]
[1765755631122,0.11230999,88142.0,88141.0,0.31429925]
[1765755631317,0.11230999,88142.0,88141.0,0.08739214]
[1765755631547,0.16057999,88142.0,88141.0,0.08739214]
[1765755631727,0.16057999,88142.0,88141.0,0.07604669]
[1765755631928,0.11230999,88140.0,88139.0,0.01134571]
[1765755632134,0.11230999,88139.0,88138.0,0.01134584]
[1765755633334,0.11230999,88136.0,88135.0,0.01134623]
[1765755634311,0.11230999,88136.0,88135.0,0.05695623]
[1765755634510,0.11230999,88136.0,88135.0,0.01134623]
[1765755634718,0.11230999,88136.0,88135.0,0.09017235]
[1765755635635,0.11230999,88141.0,88140.0,0.22691173]
[1765755636718,0.11230999,88138.0,88137.0,0.01134597]
[1765755636922,0.18945999,88137.0,88136.0,0.0113461]
[1765755637127,0.11230999,88136.0,88135.0,0.01134623]
[1765755637335,0.14118999,88137.0,88136.0,0.22692202]
[1765755637507,0.11230999,88141.0,88140.0,0.22691173]
[1765755638277,0.11230999,88140.0,88139.0,0.01134571]
[1765755638495,0.11230999,88141.0,88140.0,0.22691173]
[1765755638696,0.00161287,88142.0,88140.0,0.22691173]
[1765755638902,0.11230999,88141.0,88140.0,0.22691173]
[1765755639076,0.11230999,88141.0,88140.0,0.22791173]
[1765755641620,0.11230999,88141.0,88140.0,0.001]
[1765755641881,0.16057999,88141.0,88140.0,0.06205016]
[1765755642083,0.16057999,88141.0,88140.0,0.001]
[1765755642294,0.52040999,88141.0,88140.0,0.001]
[1765755642494,0.40300999,88141.0,88140.0,0.001]
[1765755642667,0.40300999,88141.0,88140.0,0.04661]
[1765755643081,0.40300999,88141.0,88140.0,0.001]
[1765755643285,0.4081,88141.0,88140.0,0.001]
[1765755643509,0.52040999,88141.0,88140.0,0.001]
[1765755645098,0.45127999,88141.0,88140.0,0.001]
[1765755646058,0.52040999,88141.0,88140.0,0.001]
[1765755646578,0.45127999,88141.0,88140.0,0.001]
[1765755646779,0.52040999,88141.0,88140.0,0.001]
[1765755647187,0.40300999,88141.0,88140.0,0.001]
[1765755648029,0.40300999,88141.0,88140.0,0.02606114]
[1765755648030,0.45127999,88141.0,88140.0,0.02606114]
[1765755648339,0.52040999,88141.0,88140.0,0.001]
[1765755649277,0.45127999,88141.0,88140.0,0.001]
[1765755649504,0.33897,88141.0,88140.0,0.001]
[1765755649710,0.45127999,88141.0,88140.0,0.001]
[1765755649908,0.33897,88141.0,88140.0,0.001]
[1765755650113,0.45127999,88141.0,88140.0,0.02719559]
[1765755650615,0.52040999,88141.0,88140.0,0.02719559]
[1765755650810,0.52040999,88141.0,88140.0,0.001]
[1765755651153,0.74731914,88141.0,88140.0,0.001]
[1765755651557,0.04827,88141.0,88140.0,0.001]
[1765755651765,0.06327,88141.0,88140.0,0.001]
[1765755651967,0.06327,88141.0,88140.0,0.04875339]
[1765755652378,0.40248914,88141.0,88140.0,0.04875339]
[1765755652579,0.47161914,88141.0,88140.0,0.04875339]
[1765755653630,0.41448914,88141.0,88140.0,0.04975339]
[1765755653828,0.30217915,88141.0,88140.0,0.04975339]
[1765755654042,0.41448914,88141.0,88140.0,0.04975339]
[1765755654625,0.48361914,88141.0,88140.0,0.04975339]
[1765755654849,0.18757999,88141.0,88140.0,0.002]
[1765755655604,0.13930999,88141.0,88140.0,0.04761]
[1765755655821,0.027,88141.0,88140.0,0.40035657]
[1765755656821,0.015,88141.0,88140.0,0.39935657]
[1765755657135,0.00011546,88147.0,88146.0,0.22689628]
[1765755657389,0.00011546,88147.0,88146.0,0.27371628]
[1765755657648,0.00011546,88147.0,88146.0,0.43205858]
[1765755658358,0.00311546,88147.0,88146.0,0.43205858]
[1765755659426,0.00911546,88147.0,88146.0,0.43205858]
[1765755659611,0.00611546,88147.0,88146.0,0.43205858]
[1765755659806,0.00011546,88147.0,88146.0,0.43205858]
[1765755660011,0.01011546,88147.0,88146.0,0.43205858]
[1765755660268,0.01011546,88147.0,88146.0,0.0907223]
[1765755660399,0.06002833,88147.0,88142.0,0.23825076]
[1765755660606,0.11230999,88144.0,88143.0,0.0113452]
[1765755660815,0.11230999,88144.0,88140.0,0.05241484]
[1765755660816,0.0113452,88143.0,88140.0,0.05241484]
[1765755661017,0.0113452,88143.0,88122.0,0.10820644]
[1765755661018,0.01134661,88132.0,88125.0,0.01134751]
[1765755661226,0.11230999,88126.0,88125.0,0.01134751]
[1765755661906,0.11230999,88125.0,88123.0,0.01134777]
[1765755662108,0.11230999,88121.0,88118.0,0.01134841]
[1765755662499,0.11230999,88119.0,88118.0,0.01134841]
[1765755662701,0.11230999,88113.0,88112.0,0.23833302]
[1765755663976,0.11430999,88113.0,88112.0,0.23833302]
[1765755664394,0.11430999,88113.0,88109.0,0.22699156]
[1765755664395,0.11830999,88113.0,88109.0,0.22699156]
[1765755664645,0.11830999,88113.0,88111.0,0.22698641]
[1765755664791,0.006,88113.0,88112.0,0.04682]
[1765755664998,0.006,88113.0,88112.0,0.11444]
[1765755665853,0.004,88113.0,88112.0,0.11444]
[1765755666068,0.006,88113.0,88112.0,0.11444]
[1765755666302,0.006,88113.0,88112.0,0.2128613]
[1765755666518,0.004,88113.0,88112.0,0.2128613]
[1765755666962,0.006,88113.0,88112.0,0.2128613]
[1765755667598,0.006,88113.0,88112.0,0.1452413]
[1765755667756,0.11830999,88113.0,88112.0,0.1452413]
[1765755669043,0.006,88113.0,88112.0,0.2188313]
[1765755670580,0.01816,88135.0,88112.0,0.38115968]
[1765755670786,0.11230999,88156.0,88154.0,0.01134378]
[1765755670988,0.01134391,88153.0,88149.0,0.01134442]
[1765755671188,0.01134391,88153.0,88143.0,0.0113452]
[1765755671189,0.01134494,88145.0,88139.0,0.01134571]
[1765755671521,0.11230999,88138.0,88137.0,0.22691945]
[1765755671899,0.11230999,88153.0,88152.0,0.01134404]
[1765755672118,0.13046999,88153.0,88152.0,0.04611]
[1765755672367,0.13046999,88153.0,88138.0,0.07359]
[1765755672368,0.11230999,88144.0,88140.0,0.01134558]
[1765755672549,0.11230999,88141.0,88140.0,0.01134558]
[1765755673593,0.11530999,88141.0,88140.0,0.01134558]
[1765755674221,0.11230999,88139.0,88138.0,0.01134584]
[1765755674506,0.005,88141.0,88138.0,0.01134584]
[1765755674739,0.005,88141.0,88139.0,0.08230547]
[1765755674740,0.11230999,88140.0,88139.0,0.08230547]
[1765755675289,0.11230999,88140.0,88139.0,0.20200547]
[1765755675488,0.01134455,88148.0,88143.0,0.0113452]
[1765755675735,0.002,88141.0,88140.0,0.04611]
[1765755675965,0.22890915,88141.0,88140.0,0.07018491]
[1765755676107,0.22690915,88141.0,88135.0,0.2269246]
[1765755676317,0.01134597,88137.0,88132.0,0.01134661]
[1765755676542,0.01454145,88140.0,88137.0,0.23826519]
[1765755676738,0.00161287,88141.0,88139.0,0.04611]
[1765755676915,0.00361287,88141.0,88140.0,0.04611]
[1765755677111,0.00661287,88141.0,88139.0,0.2269143]
[1765755677315,0.00461287,88141.0,88138.0,0.06381909]
[1765755677541,0.00461287,88141.0,88139.0,0.2269143]
[1765755677747,0.00461287,88141.0,88140.0,0.07672747]
[1765755678149,0.11692286,88141.0,88140.0,0.07672747]
[1765755678373,0.11392286,88141.0,88140.0,0.07672747]
[1765755678575,0.12192286,88141.0,88140.0,0.07672747]
[1765755678960,0.11230999,88140.0,88139.0,0.001]
[1765755679165,0.00961287,88141.0,88138.0,0.05247325]
[1765755679166,0.11230999,88139.0,88138.0,0.05247325]
[1765755680326,0.11430999,88139.0,88138.0,0.05247325]
[1765755680533,0.12365686,88130.0,88126.0,0.01134738]
[1765755680778,0.11230999,88123.0,88122.0,0.0113479]
[1765755681190,0.11230999,88123.0,88122.0,0.0574579]
[1765755681410,0.11230999,88129.0,88128.0,0.01134713]
[1765755681617,0.01134674,88131.0,88128.0,0.06076408]
[1765755681757,0.11230999,88129.0,88128.0,0.06076408]
[1765755681975,0.11230999,88125.0,88124.0,0.01134764]
[1765755682573,0.11230999,88125.0,88124.0,0.13104764]
[1765755683232,0.11230999,88125.0,88124.0,0.13204764]
[1765755683434,0.11230999,88125.0,88124.0,0.13104764]
[1765755684586,0.11230999,88125.0,88124.0,0.04611]
[1765755684802,0.11330999,88125.0,88124.0,0.10687726]
[1765755685880,0.11330999,88125.0,88124.0,0.06076726]
[1765755686093,0.11230999,88122.0,88121.0,0.01134803]
[1765755686299,0.11230999,88122.0,88121.0,0.23830813]
[1765755686512,0.001,88125.0,88124.0,0.22695292]
[1765755686740,0.001,88125.0,88124.0,0.27280292]
[1765755686955,0.001,88125.0,88124.0,0.45309054]
[1765755687384,0.02946558,88140.0,88128.0,0.22694262]
[1765755687588,0.01134635,88134.0,88128.0,0.03671]
[1765755687789,0.01134687,88130.0,88126.0,0.01134738]
[1765755687956,0.01134687,88130.0,88124.0,0.12185526]
[1765755687957,0.11230999,88125.0,88124.0,0.11050762]
[1765755688356,0.11230999,88125.0,88117.0,0.22697001]